Cogmind - Beta 15 @@@ ROGUE MODE // 2025.09.01 @ 08:28:54 Player: ID-34L Result: Destroyed by YI-UF0 with YI-UF0's Doublenader Performance ------------- Evolutions (0) 0 Regions Visited (4) 800 Robots Destroyed (22) 110 Value Destroyed (390) 390 Prototype IDs (23) 460 Alien Tech Used (0) 0 Bonus (307) 307 TOTAL SCORE: 2067 Bonus ------- Follower Combat Kills 7 Aligned with FarCom 300 Cogmind --------- Core Integrity 0/250 Matter 300/300 Energy 100/100 System Corruption 0% Temperature Cool (0) Movement Treading (240) Ox1 Location -9/Mines Parts ------- > --- POWER (1) -------- (None) > --- PROPULSION (2) --- Light Treads > --- UTILITY (2) ------ Large Storage Unit > --- WEAPON (2) ------- Particle Cannon > --- INVENTORY (15) --- Light Ion Engine Light Treads Light Treads Light Treads Light Treads Trap Reconfigurator Splice Drone Bay Heavy EM Pulse Gun Spread Laser Beam Cannon Particle Cannon Light Cannon EMP Blaster EMP Blaster Enhanced Flamer Peak State ------------ > --- POWER ------------ Ion Engine > --- PROPULSION ------- Light Treads Light Treads > --- UTILITY ---------- Large Storage Unit Propulsion Shielding > --- WEAPON ----------- Heavy EM Pulse Gun Medium Laser > --- INVENTORY -------- Light Ion Engine Light Treads Light Treads Light Treads Light Treads Trap Reconfigurator Splice Drone Bay Spread Laser Beam Cannon Particle Cannon Particle Cannon Light Cannon EMP Blaster EMP Blaster Enhanced Flamer [Rating: 11] Favorites ----------- Power Ion Engine Engine Ion Engine Propulsion Light Treads Treads Light Treads Utility Propulsion Shielding Storage Large Storage Unit Protection Propulsion Shielding Weapon Medium Laser Energy Gun Medium Laser Energy Cannon Particle Cannon Ballistic Gun Light Assault Rifle Build | -11 -10 -10 -10 -9 ------- Run | Yrd Mat Min Exi Min Slots Evolved . | . . . . . Power . | . . . . . Propulsion . | . . . . . Utility . | . . . . . Weapon . | . . . . . Parts Attached 16 | 6 6 3 . 1 Power 2 | 1 1 . . . Engine 2 | 1 1 . . . Core . | . . . . . Reactor . | . . . . . Propulsion 4 | 2 . 2 . . Treads 4 | 2 . 2 . . Leg . | . . . . . Wheel . | . . . . . Hover . | . . . . . Flight . | . . . . . Utility 5 | 1 3 1 . . Device . | . . . . . Storage 3 | 1 2 . . . Processor . | . . . . . Hackware . | . . . . . Protection 2 | . 1 1 . . Artifact . | . . . . . Weapon 5 | 2 2 . . 1 Energy Gun 3 | 2 1 . . . Energy Cannon 1 | . . . . 1 Ballistic Gun 1 | . 1 . . . Ballistic Cannon . | . . . . . Launcher . | . . . . . Special Weapon . | . . . . . Impact Weapon . | . . . . . Slashing Weapon . | . . . . . Piercing Weapon . | . . . . . Special Melee Weapon . | . . . . . Unidentified Prototypes . | . . . . . Parts Lost 5 | . 1 . . 4 Power 1 | . . . . 1 Propulsion 1 | . . . . 1 Utility 1 | . . . . 1 Weapon 2 | . 1 . . 1 Highest Loss Streak 4 | . 1 . . 4 To Critical Strikes . | . . . . . Average Backups 11 | 2 8 14 15 15 Power . | . 1 1 1 1 Propulsion 4 | 1 4 5 4 4 Utility . | . . 1 1 2 Weapon 5 | . 2 7 8 8 Tool/Special . | . . . . . Unused Backups 17 | . . 2 1 14 Power 1 | . . . . 1 Propulsion 7 | . . 2 1 4 Utility 2 | . . . . 2 Weapon 7 | . . . . 7 Tool/Special . | . . . . . Average Slot Usage (%) 98 | . 97 100 100 97 Engine 14 | . 14 14 14 14 Treads 27 | . 27 28 28 27 Storage 14 | . 14 14 14 14 Protection 13 | . 12 14 14 13 Energy Gun 26 | . 25 28 28 22 Ballistic Gun 1 | . 2 . . . Peak Build Rating 11 | 6 10 10 11 11 Average Rating 9 | 4 8 9 10 10 On Entrance 7 | . 6 10 10 11 Naked Turns . | . . . . . Heaviest Build 91 | 14 91 31 31 32 Greatest Support 40 | 40 40 40 40 40 Greatest Overweight (x) 4 | . 4 . . 1 Average Overweight (x) . | . . . . . Largest Inventory Capacity 25 | 8 25 15 15 15 Average Capacity 13 | 6 10 15 15 15 Most Carried 15 | 4 15 15 15 15 Average Carried 11 | 2 8 14 15 15 Final Capacity 15 | 8 15 15 15 15 Final Carried 15 | 4 15 15 15 15 Class Distribution -------------------- 100% | Mutant Dominant Class ---------------- Mutant | -10/Materials Mutant | -10/Mines Mutant | -10/Exiles Mutant | -9/Mines Resources | -11 -10 -10 -10 -9 ----------- Run | Yrd Mat Min Exi Min Matter Collected 384 | 203 141 30 . 10 Remotely . | . . . . . Salvage Created 599 | . 445 131 . 23 Parts 40 | . 21 19 . . Haulers Intercepted 2 | . 2 . . . Recyclers Shooed . | . . . . . Parts Field Recycled . | . . . . . Retrieved Matter . | . . . . . Parts Self-Destructed . | . . . . . Prevented . | . . . . . Kills | -11 -10 -10 -10 -9 ------- Run | Yrd Mat Min Exi Min Combat Hostiles Destroyed 17 | . 7 8 . 2 Guns 13 | . 5 8 . . Cannons 2 | . . . . 2 AOE 2 | . 2 . . . Classes Destroyed 7 | . 5 1 . 1 Worker 3 | . 2 1 . . Hauler 2 | . 2 . . . Operator 1 | . 1 . . . Watcher 1 | . 1 . . . Swarmer 8 | . . 8 . . Grunt 7 | . 7 . . . Assembled 2 | . . . . 2 Best Kill Streak 3 | . 3 3 . 1 Combat Bots Only 3 | . 2 3 . 1 Max Kills in Single Turn 2 | . 2 2 . 1 Gunslinging 1 | . 1 . . . Exploded 2 | . 2 . . . Melee . | . . . . . Uniques/NPCs Destroyed . | . . . . . Combat | -11 -10 -10 -10 -9 -------- Run | Yrd Mat Min Exi Min Hostile Shots Fired 62 | . 23 19 . 20 Missed 18 | . 6 8 . 4 Hits 44 | . 17 11 . 16 Projectile 44 | . 17 11 . 16 AOE 12 | . . . . 12 Critical Strikes 1 | . . 1 . . Part Disruptions 1 | . . . . 1 Damage Taken 953 | . 388 135 . 430 Core 250 | . 135 50 . 65 Absorbed by Shields . | . . . . . Redirected to Shielding 88 | . 27 16 . 45 Core Remaining (%) 100 | 100 . . . . Volleys Fired 40 | . 25 10 . 5 Largest 2 | . 2 2 . 2 Hottest 118 | . 95 95 . 118 Shots Fired 80 | . 50 20 . 10 Gun 76 | . 50 20 . 6 Cannon 4 | . . . . 4 Launcher . | . . . . . Special . | . . . . . Kinetic 3 | . 3 . . . Thermal 44 | . 25 10 . 9 Explosive . | . . . . . Electromagnetic 33 | . 22 10 . 1 Robot Hit Streak 13 | . 13 4 . 3 Robot Miss Streak 4 | . 2 4 . 2 Penetration Max . | . . . . . Secondary Targets 4 | . 2 2 . . Max Gunslinging Chain 1 | . 1 1 . . Shots Hit Robots 49 | . 33 11 . 5 Core Hits 32 | . 21 9 . 2 Critical Kills . | . . . . . Critical Parts Destroyed . | . . . . . Critical Strikes 5 | . 3 2 . . Burn 5 | . 3 2 . . Melee Attacks . | . . . . . Impact . | . . . . . Slashing . | . . . . . Piercing . | . . . . . Sneak Attacks . | . . . . . Combat Hostiles . | . . . . . Follow-up Attacks . | . . . . . Damage Inflicted 907 | . 632 181 . 94 Guns 626 | . 445 168 . 13 Cannons 81 | . . . . 81 Explosions 155 | . 155 . . . Melee . | . . . . . Ramming 45 | . 32 13 . . Kinetic 21 | . 21 . . . Thermal 459 | . 287 78 . 94 Explosive 95 | . 95 . . . Electromagnetic 287 | . 197 90 . . Impact . | . . . . . Slashing . | . . . . . Piercing . | . . . . . Highest Corruption . | . . . . . Average Corruption . | . . . . . Corruption Purged . | . . . . . Corruption Blocked . | . . . . . Overload Shots . | . . . . . Overflow Damage 11 | . 11 . . . Projectiles . | . . . . . Explosions 11 | . 11 . . . Melee . | . . . . . Knockbacks . | . . . . . Impact . | . . . . . Kinetic . | . . . . . Secondary . | . . . . . Self-Inflicted Damage 150 | . 150 . . . Shots 2 | . 2 . . . Rammed 6 | . 5 1 . . Targets Rammed 7 | . 5 2 . . Kicked . | . . . . . Crushed 1 | . . 1 . . Highest Temperature 234 | . 234 99 . 151 Average Temperature 57 | . 64 40 . 54 Received Heat Transfer 252 | . 114 18 . 120 Siege Activations . | . . . . . Martial Activations . | . . . . . Shielding Activations . | . . . . . Robots Disrupted 1 | . 1 . . . Combat Hostiles . | . . . . . Robots Corrupted . | . . . . . Combat Hostiles . | . . . . . Parts Fried . | . . . . . Impact Corruptions . | . . . . . Robots Melted . | . . . . . Combat Hostiles . | . . . . . Parts Melted 8 | . 7 1 . . Heat Transferred 1543 | . 988 370 . 185 Parts Sabotaged . | . . . . . Parts Stolen . | . . . . . Parts Stripped . | . . . . . Power Chain Reactions 1 | . 1 . . . Alert | -11 -10 -10 -10 -9 ------- Run | Yrd Mat Min Exi Min Maximum Alert Level . | . . . . . Low Security (%) 100 | 100 100 100 . 100 Level 1 . | . . . . . Level 2 . | . . . . . Level 3 . | . . . . . Level 4 . | . . . . . Level 5 . | . . . . . High Security . | . . . . . Max Security . | . . . . . Peak Influence 89 | . 89 78 . . Initial . | . . . . . Average 11 | . 9 20 . . Influence Increases 510 | . 279 231 . . Destroy 0b10 Robot/C 320 | . 140 180 . . Destroy 0b10 Robot/NC 35 | . 30 5 . . Destroy Leader 66 | . 36 30 . . Allied During Kill 16 | . . 16 . . Successful Hack 9 | . 9 . . . Disable Machine 30 | . 30 . . . Destroy Structure 34 | . 34 . . . Influence Decreases 510 | . 279 207 24 . Entered New Map 24 | . . . 24 . Time Decay 436 | . 229 207 . . Lost Part 10 | . 10 . . . Purge Threat 40 | . 40 . . . Squads Dispatched 2 | . 2 . . . Investigation 1 | . 1 . . . Extermination . | . . . . . Reinforcement 1 | . 1 . . . Assault . | . . . . . Garrison . | . . . . . Intercept . | . . . . . Searches Triggered . | . . . . . Construction Impeded . | . . . . . Haulers Reinforced . | . . . . . Active Scanning Responses . | . . . . . Cargo Convoy Interrupts . | . . . . . Stealth | -11 -10 -10 -10 -9 --------- Run | Yrd Mat Min Exi Min Distress Signals 1 | . 1 . . . Communications Jammed . | . . . . . Distress Signals . | . . . . . Times Spotted 24 | . 10 10 . 4 Peak Tracking Total 3 | . 2 3 . 2 Tactical Retreats 1 | . . . . 1 Traps | -11 -10 -10 -10 -9 ------- Run | Yrd Mat Min Exi Min Traps Triggered 2 | . 2 . . . Indirectly . | . . . . . Trap Hack Attempts . | . . . . . Triggered . | . . . . . Disarmed . | . . . . . Reprogrammed . | . . . . . Reused . | . . . . . Traps Extracted . | . . . . . Installed . | . . . . . Triggered . | . . . . . Machines | -11 -10 -10 -10 -9 ---------- Run | Yrd Mat Min Exi Min Machines Disabled 3 | . 3 . . . Max in Single Turn 1 | . 1 . . . Machines Repaired . | . . . . . Machines Dismantled . | . . . . . Machines Sabotaged . | . . . . . Overloaded Fab Kills . | . . . . . Hacking | -11 -10 -10 -10 -9 --------- Run | Yrd Mat Min Exi Min Machines Accessed 13 | . 7 1 5 . Terminals 6 | . 6 . . . Fabricators . | . . . . . Repair Stations . | . . . . . Recycling Units 1 | . 1 . . . Scanalyzers . | . . . . . Garrison Access . | . . . . . Total Hacks 62 | . 14 1 47 . Successful 52 | . 4 1 47 . Failed 10 | . 10 . . . Catastrophic 2 | . 2 . . . Database Lockouts . | . . . . . Manual 1 | . . . 1 . Terminals 13 | . 13 . . . Fabricators . | . . . . . Repair Stations . | . . . . . Recycling Units 1 | . 1 . . . Scanalyzers . | . . . . . Garrison Access . | . . . . . Terminal Hacks 51 | . 3 1 47 . Record 46 | . . . 46 . Open Door 1 | . . 1 . . Unreport Threat 1 | . 1 . . . Locate Traps 1 | . 1 . . . Zone Layout 1 | . 1 . . . Proto ID Catalog 1 | . . . 1 . Fabricator Hacks . | . . . . . Repair Station Hacks . | . . . . . Recycling Unit Hacks 1 | . 1 . . . Report Inventory 1 | . 1 . . . Scanalyzer . | . . . . . Garrison Access Hacks . | . . . . . Unauthorized Hacks . | . . . . . Terminals . | . . . . . Fabricators . | . . . . . Repair Stations . | . . . . . Recycling Units . | . . . . . Scanalyzers . | . . . . . Garrison Access . | . . . . . Data Cores Recovered . | . . . . . Used . | . . . . . Hacking Detections 6 | . 6 . . . Full Trace Events 1 | . 1 . . . Feedback Events . | . . . . . Feedback Blocked . | . . . . . Robot Schematics Acquired . | . . . . . Robots Built . | . . . . . Authchips . | . . . . . Time . | . . . . . Total Robot Build Rating . | . . . . . Part Schematics Acquired . | . . . . . Parts Built . | . . . . . Authchips . | . . . . . Time . | . . . . . Total Part Build Rating . | . . . . . Parts Repaired . | . . . . . Time . | . . . . . Parts Recycled . | . . . . . Recycled Matter . | . . . . . Retrieved Matter . | . . . . . Retrieved Components . | . . . . . Parts Scanalyzed . | . . . . . Part Schematics Acquired . | . . . . . Parts Damaged . | . . . . . Bothacking | -11 -10 -10 -10 -9 ------------ Run | Yrd Mat Min Exi Min Used RIF Installer . | . . . . . Robots Hacked . | . . . . . Non-combat . | . . . . . Combat . | . . . . . Robot Hacks Applied . | . . . . . Relay Couplers Released . | . . . . . Fabnet Peak Effective % . | . . . . . Robots Rewired . | . . . . . Allies Hacked . | . . . . . Hacks Repelled . | . . . . . Allies | -11 -10 -10 -10 -9 -------- Run | Yrd Mat Min Exi Min Total Allies 2 | . . 2 . . Largest Group 2 | . . 2 2 . Highest-Rated Group 42 | . . 42 42 . Highest-Rated Ally 31 | . . 31 31 . Total Orders . | . . . . . Ally Attacks 8 | . . 8 . . Total Damage 106 | . . 106 . . Kills 1 | . . 1 . . Allies Corrupted . | . . . . . Allies Melted . | . . . . . Intel | -11 -10 -10 -10 -9 ------- Run | Yrd Mat Min Exi Min Active Infowar (turns) . | . . . . . Robot Analysis Total . | . . . . . Derelict Logs Recovered 4 | . . 3 . 1 Drone Launches . | . . . . . Drone Recoveries . | . . . . . Exploration | -11 -10 -10 -10 -9 ------------- Run | Yrd Mat Min Exi Min Turns Passed 4494 | 71 1893 1101 1032 397 Spaces Moved 2556 | 44 1031 621 645 215 Core 14 | 13 1 . . . Treads 2542 | 31 1030 621 645 215 Legs . | . . . . . Wheels . | . . . . . Hover . | . . . . . Flight . | . . . . . Fastest Speed 50 | 50 160 160 160 160 Average Speed 163 | 127 169 160 160 162 Slowest Speed 320 | 160 320 160 160 240 Overloaded Moves . | . . . . . Propulsion Burnouts . | . . . . . Robots Hopped . | . . . . . Potential Cave-ins . | . . . . . Cave-ins Triggered . | . . . . . Exploration Rate (%) 68 | 4 96 93 93 55 Regions Visited 4 Branch Regions 3 Pre-discovered Areas 3 | . . 2 1 . Known Exits Taken . | . . . . . Unknown Exits Taken 4 | 1 1 1 1 . Scrap Searched 2 | . . 1 . 1 Spaces Dug . | . . . . . Terrain Destroyed 33 | . 33 . . . Melee . | . . . . . Projectile . | . . . . . AOE 33 | . 33 . . . Terrain Rammed . | . . . . . Walls Destroyed . | . . . . . Machines Disabled . | . . . . . Actions | -11 -10 -10 -10 -9 --------- Run | Yrd Mat Min Exi Min Total 2789 | 59 1122 710 646 252 Wait 132 | . 35 66 . 31 Move 2552 | 43 1030 620 644 215 Hop . | . . . . . Pick Up 28 | 10 14 3 1 . Fast Attach 4 | . 4 . . . Attach 7 | 6 1 . . . Detach . | . . . . . Swap 8 | . 4 3 . 1 Drop 11 | . 4 6 1 . Fire 40 | . 25 10 . 5 Melee . | . . . . . Ram . | . . . . . Kick . | . . . . . Crush 7 | . 5 2 . . Escape Stasis . | . . . . . Rewire . | . . . . . Trap . | . . . . . Miscellaneous . | . . . . . Route ------- -11/Scrapyard -10/Materials (discovered 6 exits: [*Mat x3] / *Min x2 / [*Sub]) -10/Mines (discovered 4 exits: [*Mat x2] / *Exi / [*Sub]) -10/Exiles (discovered 2 exits: [*Min x2]) -9/Mines History --------- Turn | Location | Event 50 | -11/Scrapyard | Discovered new exit (range 15) 72 | -11/Scrapyard | Entered Materials 73 | -10/Materials | Met a group of wandering Federalists 106 | -10/Materials | Discovered new exit (range 15) 164 | -10/Materials | Discovered new exit (range 6) 201 | -10/Materials | Discovered new exit (range 7) 310 | -10/Materials | Build established: Mutant 455 | -10/Materials | Discovered new exit (range 16) 1089 | -10/Materials | Core integrity fell below 50% 1136 | -10/Materials | Discovered new exit (range 16) 1468 | -10/Materials | Discovered new exit (range 15) 1965 | -10/Materials | Entered Mines 1973 | -10/Mines | Found the Drone Emporium 1990 | -10/Mines | Found Prototype Device 2025 | -10/Mines | Discovered new exit (range 6) 2061 | -10/Mines | A weapon hastily lodged in a ceiling crevice suddenly fell to the ground 2097 | -10/Mines | Learned Materials non-interactive machine intel 2105 | -10/Mines | Learned 2 Materials zone layouts 2126 | -10/Mines | Deemed a non-threat by the Exiles lab entrance 2128 | -10/Mines | Discovered new exit (range 5) 2192 | -10/Mines | Joined a pair of Derelicts in attacking an 0b10 outpost 2484 | -10/Mines | Discovered new exit (range 6) 2569 | -10/Mines | Learned location of Zion (-7) 2582 | -10/Mines | Learned location of Storage (-9) 2750 | -10/Mines | Discovered new exit (range 10) 3066 | -10/Mines | Entered Exiles 3066 | -10/Exiles | Accompanied by 2 allies 3089 | -10/Exiles | Discovered new exit (range 15) 3096 | -10/Exiles | Led the pair of lost Derelicts to a safe place 3113 | -10/Exiles | Met 8R-AWN 3146 | -10/Exiles | Met EX-HEX 3242 | -10/Exiles | Met EX-DEC 3306 | -10/Exiles | Visited The Gauntlet 3583 | -10/Exiles | Discovered new exit (range 10) 3700 | -10/Exiles | Met EX-BIN 3858 | -10/Exiles | Aligned with FarCom system 3860 | -10/Exiles | Given EX-Vault access code 3906 | -10/Exiles | Opened EX-Vault 3918 | -10/Exiles | Found Trap Reconfigurator 3977 | -10/Exiles | Warned to stay clear of 0b10 Research branches 4098 | -10/Exiles | Left Exiles lab with Trap Reconfigurator 4098 | -10/Exiles | Entered Mines 4151 | -9/Mines | Assembled infested the area 4215 | -9/Mines | Learned Materials stockpile data 4475 | -9/Mines | Core integrity fell below 20% 4495 | -9/Mines | Destroyed by YI-UF0 with YI-UF0's Doublenader Last Messages --------------- 04108_ Found 57 Matter. 04151_ ALERT: Infestation in the mines, dispatching Demolisher response squad. 04169_ K-01 Serf collects debris. 04215_ Acquired derelict log, extracted data. Data stored: Materials stockpile data. 04356_ as-19199 destroyed. 04374_ Acquired 10 matter. 04377_ as-22091 destroyed. 04472_ Propulsion Shielding destroyed. 04474_ The unstable cave ceiling collapses. 04474_ K-01 Serf collects debris. 04474_ Med. Laser destroyed. 04476_ The unstable cave ceiling collapses. 04477_ U-05 Engineer lays Concrete. 04478_ K-01 Serf collects debris. 04478_ U-05 Engineer builds a Wall. 04479_ Lgt. Treads destroyed. 04483_ The unstable cave ceiling collapses. 04495_ Ion Engine destroyed. Map ----- +----------------------------------------------------+ | ???????????????? ? ??????????????????????????????? | | ????????????? ?*??????????????????????????????? | | ?????????????? ??????????????????????????????? | | ?????????????? ?????????????????????????????? | | ?????????????? ?????????????????????????????? | | ??????????????? # ?????????????????????????????? | | ????????#??##### #%#????????????????????????????? | | ??????? ##=! = ????????????????????????????? | | ??????? =%! ????????????????????????????? | | ??????? *%*%% * ##??????????????????????????? | | ?????? =|! # ###????????????????????????? | | ????????# ! #????????????????????????? | | ??????????# $ # # ###??????????????????????? | | ????????????#%* ##?###?????????????????? | | ?????????????# # ## ##????????????????? | | ?????????????#### # ##???????????????? | | ???????????????# # ## ##??????????????? | | ???????????????## ##?????????????? | | ????????????????### #?????????????? | | ??????????????????# g ## #?????????????? | | ??????????????????### #?# ##?????????????? | | ????????????????????#### #?? ###??????????????? | | ???????????????????????? #??? #????????????????? | | ????????????????????????# #???? #????????????????? | | ????????????????????????# #????? ????????????????? | | ????????????????????#####@#????? ??????????????? | | ????????????????????# #????? ?????????????? | | ????????????????????# #####???? ?????????????? | | ????????????????????# #???????# ?????????????? | | ????????????????????# #?????## #?????????????? | | ????????????????????# #????# ##?????????????? | | ???????????????????## #???# ##?????????????? | | ???????????????????# #### ## ???????????? | | ???????????????????# ??????????? | | ???????????????????# ??????????? | | ???????????????????# ###???????????????? | | ???????????????????# #####?????????????????? | | ???????????????????# ##?????????????????????? | | ???????????????????## ##??????????????????????? | | ????????????###?????# ###?????????????????????? | | ???????????## ##???# ##????????????????????? | | ???????????# ##### ###???????####???????? | | ###????#####%= %! *%= #??????## ##??????? | | ### = %%=%!% ### #?# ##?????? | | ## %= ######%#??## ###### ##????? | | ####### ##????# ###??####??## #????? | | "" ##???## #?????#% #????????# #????? | | "" ###### ##????# #???????## ##????? | | "" ## ####### #??????##= ##?????? | | ## #???#### ###??????? | +----------------------------------------------------+ Best States ------------- Heat Dissipation 25 Energy Generation 10 Energy Capacity 250 Matter Stores 300 Matter Capacity 300 Sight Range 16 Terrain Scan Density 10 Propulsion Shielding 33 Evasion (%) 50 Recoil Reduction 2 Item Schematics ----------------- None Robot Schematics ------------------ None Fabricated ------------ Nothing Repaired ---------- Nothing Alien Tech Used ----------------- None Achievements -------------- Librarian Challenges ------------ None Game ------ Seed NeutrinoMasterRecalibrator Manual? 0 Play Time 00:32:57 Cumulative 6.5 hours Start 2025.09.01 @ 07:56:04 End 2025.09.01 @ 08:28:54 Sessions 1 Manual Loads 0 Difficulty Rogue Special Mode None Game No. 12 Rogue 12 Adventurer 0 Explorer 0 Win Type - Total 0 Types 0/0/0/0/0/0/0/0/0/0 Lore% 6 Gallery% 9 Achievement% 12 Wizard Run 0 Options --------- Layout 1 ASCII 0 Keyboard 1 Movement Numpad Keybinds 0 Fullscreen 0 Font 20/X11 Map View 50x35 Zoom Use 0% Tactical HUD 1 Map Filters NONE Filters NONE Steam 1 RUN: f7e96e59-e2d4-4e53-8666-dda50733d948